Workbook

Sheet System Exta Life firmy ZAMEL
A1: DOBÓR POJEDYNCZYCH ELEMENTÓW | N1: ORIENTACYJNY DOBÓR URZĄDZEŃ W ZALEŻNOŚCI OD ILOŚCI ODBIORÓW
J4: Strona Exta Life | N4: ELEMENTY W DOMU | Q4: Rozwiązanie tylko puszki | R4: Ilość urządzeń | S4: Rozwiązanie moduły+puszki | T4: Ilość urządzeń
N7: Sterowanie przez internet | O7: Nie | Q7: EFC-01 | R7: =IF(O7="TAK", 1,0) -> 0 | S7: EFC-01 | T7: =IF(O7="TAK", 1,0) -> 0
N8: Liczba obwodów światła 230V | O8: 0 | Q8: ROP-21 | R8: =(ROUNDUP(O8,0))+(ROUNDUP(O14,0)) -> 0 | S8: ROM-22 | T8: =ROUNDUP(O8/2,0)+(ROUNDUP(O14/2,0)) -> 0
N9: Liczba obwódów ściemnialne 230V | O9: 0 | Q9: ROP-22 | R9: =ROUNDUP(O8/2,0)+(ROUNDUP(O14/2,0)) -> 0 | S9: ROM-24 | T9: =ROUNDUP(O8/4,0)+(ROUNDUP(O14/4,0)) -> 0
N10: Liczba obwodów światła 12-24V DC | O10: 0 | Q10: RDP-21 | R10: =ROUNDUP(O9,0) -> 0 | S10: SRM-22 | T10: =ROUNDUP(O13/2,0) -> 0
N11: Liczba obwodów - paski LED RGB(W) | O11: 0 | Q11: SLR-21 | R11: =ROUNDUP(O10/4,0) -> 0 | S11: RDP-21 | T11: =ROUNDUP(O9,0) -> 0
N12: Ogrzewanie (zawory - grzejniki) | O12: 0 | Q12: SLR-22 | R12: =ROUNDUP(O11,0) -> 0 | S12: SLR-21 | T12: =ROUNDUP(O10/4,0) -> 0
N13: Liczba rolet | O13: 0 | Q13: SRP-22 | R13: =ROUNDUP(O13,0) -> 0 | S13: SLR-22 | T13: =ROUNDUP(O11,0) -> 0
A14: EFC-01 | D14: RNK-22 | G14: RNK-24 | N14: Gniazda elektryczne | O14: 0 | Q14: RGT-01 | R14: =(ROUNDUP(O12,0)) -> 0 | S14: RGT-01 | T14: =(ROUNDUP(O12,0)) -> 0
A15: Kontroler EXTA LIFE | D15: Nadajnik klawiszowy 2-kanałowy z czujnikiem temperatury | G15: Nadajnik klawiszowy 4-kanałowy z czujnikiem temperatury | N15: Pomiar energii (odbiornik 230V - gniazdko) | O15: 0 | Q15: ROG-21 | R15: =(ROUNDUP(O14,0))+(ROUNDUP(O15,0)) -> 0 | S15: ROG-21 | T15: =(ROUNDUP(O14,0))+(ROUNDUP(O15,0)) -> 0
B16: 0 | E16: 0 | H16: 0 | N16: PODSUMOWANIE | U16: EXPORT
N19: Typ urządzenia | O19: Symbol urządzenia | P19: Ilość urządzeń | Q19: Cena jednostkowa | R19: Rabat | S19: Cena po rabacie | T19: Suma | U19: Waluta | V19: Kurs walut | W19: Cena jednostkowa | X19: Cena po rabacie | Y19: Suma
N21: Kontroler | O21: =A14 -> EFC-01 | P21: =B16 -> 0 | Q21: =VLOOKUP('System Exta Life firmy ZAMEL'!O21,'dane wejściowe'!$A$1:$C$32,2,FALSE) -> 721 | R21: 0.15 | S21: =Q21-Q21*R21 -> 612.85 | T21: =S21*P21 -> 0 | U21: euro | V21: =VLOOKUP('System Exta Life firmy ZAMEL'!U21,Table_0[],3,FALSE) -> 4.4906 | W21: =Q21/V21 -> 160.5576092 | X21: =S21/V21 -> 136.4739678 | Y21: =X21*P21 -> 0
N22: Nadajniki klawiszowe | O22: =D14 -> RNK-22 | P22: =E16 -> 0 | Q22: =VLOOKUP('System Exta Life firmy ZAMEL'!O22,'dane wejściowe'!$A$1:$C$32,2,FALSE) -> 111 | R22: 0 | S22: 111 | T22: 0 | U22: euro | V22: =VLOOKUP('System Exta Life firmy ZAMEL'!U22,Table_0[],3,FALSE) -> 4.4906 | W22: =Q22/V22 -> 24.71830045 | X22: =S22/V22 -> 24.71830045 | Y22: =X22*P22 -> 0
O23: =G14 -> RNK-24 | P23: =H16 -> 0 | Q23: =VLOOKUP('System Exta Life firmy ZAMEL'!O23,'dane wejściowe'!$A$1:$C$32,2,FALSE) -> 121.5 | R23: 0 | S23: 121.5 | T23: 0 | U23: euro | V23: =VLOOKUP('System Exta Life firmy ZAMEL'!U23,Table_0[],3,FALSE) -> 4.4906 | W23: 27.05651806 | X23: 27.05651806 | Y23: 0
N24: Piloty | O24: =A29 -> P-457/2 | P24: =B31 -> 0 | Q24: =VLOOKUP('System Exta Life firmy ZAMEL'!O24,'dane wejściowe'!$A$1:$C$32,2,FALSE) -> 111 | R24: 0 | S24: 111 | T24: 0 | U24: euro | V24: =VLOOKUP('System Exta Life firmy ZAMEL'!U24,Table_0[],3,FALSE) -> 4.4906 | W24: 24.71830045 | X24: 24.71830045 | Y24: 0
O25: =D29 -> P-457/4 | P25: =E31 -> 0 | Q25: =VLOOKUP('System Exta Life firmy ZAMEL'!O25,'dane wejściowe'!$A$1:$C$32,2,FALSE) -> 116.5 | R25: 0 | S25: 116.5 | T25: 0 | U25: euro | V25: =VLOOKUP('System Exta Life firmy ZAMEL'!U25,Table_0[],3,FALSE) -> 4.4906 | W25: 25.9430811 | X25: 25.9430811 | Y25: 0
O26: =G29 -> P-456/8 | P26: =H31 -> 0 | Q26: =VLOOKUP('System Exta Life firmy ZAMEL'!O26,'dane wejściowe'!$A$1:$C$32,2,FALSE) -> 182.5 | R26: 0 | S26: 182.5 | T26: 0 | U26: euro | V26: =VLOOKUP('System Exta Life firmy ZAMEL'!U26,Table_0[],3,FALSE) -> 4.4906 | W26: 40.64044894 | X26: 40.64044894 | Y26: 0
O27: =J29 -> P-456/36 | P27: =K31 -> 0 | Q27: =VLOOKUP('System Exta Life firmy ZAMEL'!O27,'dane wejściowe'!$A$1:$C$32,2,FALSE) -> 255 | R27: 0 | S27: 255 | T27: 0 | U27: euro | V27: =VLOOKUP('System Exta Life firmy ZAMEL'!U27,Table_0[],3,FALSE) -> 4.4906 | W27: 56.78528482 | X27: 56.78528482 | Y27: 0
N28: Nadajniki puszkowe | O28: =A44 -> RNP-21 | P28: =B46 -> 0 | Q28: =VLOOKUP('System Exta Life firmy ZAMEL'!O28,'dane wejściowe'!$A$1:$C$32,2,FALSE) -> 130 | R28: 0 | S28: 130 | T28: 0 | U28: euro | V28: =VLOOKUP('System Exta Life firmy ZAMEL'!U28,Table_0[],3,FALSE) -> 4.4906 | W28: 28.94936089 | X28: 28.94936089 | Y28: 0
A29: P-457/2 | D29: P-457/4 | G29: P-456/8 | J29: P-456/36 | O29: =D44 -> RNP-22 | P29: =E46 -> 0 | Q29: =VLOOKUP('System Exta Life firmy ZAMEL'!O29,'dane wejściowe'!$A$1:$C$32,2,FALSE) -> 111 | R29: 0 | S29: 111 | T29: 0 | U29: euro | V29: =VLOOKUP('System Exta Life firmy ZAMEL'!U29,Table_0[],3,FALSE) -> 4.4906 | W29: 24.71830045 | X29: 24.71830045 | Y29: 0
A30: Pilot 2-kanałowy | D30: Pilot 4-kanałowy | G30: Pilot 8-kanałowy | J30: Pilot 36-kanałowy | N30: Nadajniki modułowe | O30: =G44 -> RNM-24 | P30: =H46 -> 0 | Q30: =VLOOKUP('System Exta Life firmy ZAMEL'!O30,'dane wejściowe'!$A$1:$C$32,2,FALSE) -> 230.5 | R30: 0 | S30: 230.5 | T30: 0 | U30: euro | V30: =VLOOKUP('System Exta Life firmy ZAMEL'!U30,Table_0[],3,FALSE) -> 4.4906 | W30: 51.32944373 | X30: 51.32944373 | Y30: 0
B31: 0 | E31: 0 | H31: 0 | K31: 0 | N31: Odbiorniki puszkowe | O31: =A59 -> ROP-21 | P31: =B61 -> 0 | Q31: =VLOOKUP('System Exta Life firmy ZAMEL'!O31,'dane wejściowe'!$A$1:$C$32,2,FALSE) -> 172.5 | R31: 0 | S31: 172.5 | T31: 0 | U31: euro | V31: =VLOOKUP('System Exta Life firmy ZAMEL'!U31,Table_0[],3,FALSE) -> 4.4906 | W31: 38.41357502 | X31: 38.41357502 | Y31: 0
O32: =D59 -> ROP-22 | P32: =E61 -> 0 | Q32: =VLOOKUP('System Exta Life firmy ZAMEL'!O32,'dane wejściowe'!$A$1:$C$32,2,FALSE) -> 174 | R32: 0 | S32: 174 | T32: 0 | U32: euro | V32: =VLOOKUP('System Exta Life firmy ZAMEL'!U32,Table_0[],3,FALSE) -> 4.4906 | W32: 38.74760611 | X32: 38.74760611 | Y32: 0
O33: =G59 -> SLR-21 | P33: =H61 -> 0 | Q33: =VLOOKUP('System Exta Life firmy ZAMEL'!O33,'dane wejściowe'!$A$1:$C$32,2,FALSE) -> 179.5 | R33: 0 | S33: 179.5 | T33: 0 | U33: euro | V33: =VLOOKUP('System Exta Life firmy ZAMEL'!U33,Table_0[],3,FALSE) -> 4.4906 | W33: 39.97238676 | X33: 39.97238676 | Y33: 0
J34: Komunikaty techniczne | O34: =J59 -> SLR-22 | P34: =K61 -> 0 | Q34: =VLOOKUP('System Exta Life firmy ZAMEL'!O34,'dane wejściowe'!$A$1:$C$32,2,FALSE) -> 200 | R34: 0 | S34: 200 | T34: 0 | U34: euro | V34: =VLOOKUP('System Exta Life firmy ZAMEL'!U34,Table_0[],3,FALSE) -> 4.4906 | W34: 44.53747829 | X34: 44.53747829 | Y34: 0
O35: =A74 -> SRP-22 | P35: =B76 -> 0 | Q35: =VLOOKUP('System Exta Life firmy ZAMEL'!O35,'dane wejściowe'!$A$1:$C$32,2,FALSE) -> 174 | R35: 0 | S35: 174 | T35: 0 | U35: euro | V35: =VLOOKUP('System Exta Life firmy ZAMEL'!U35,Table_0[],3,FALSE) -> 4.4906 | W35: 38.74760611 | X35: 38.74760611 | Y35: 0
O36: =D74 -> ROB-21 | P36: =E76 -> 0 | Q36: =VLOOKUP('System Exta Life firmy ZAMEL'!O36,'dane wejściowe'!$A$1:$C$32,2,FALSE) -> 220 | R36: 0 | S36: 220 | T36: 0 | U36: euro | V36: =VLOOKUP('System Exta Life firmy ZAMEL'!U36,Table_0[],3,FALSE) -> 4.4906 | W36: 48.99122612 | X36: 48.99122612 | Y36: 0
O37: =G74 -> RDP-21 | P37: =H76 -> 0 | Q37: =VLOOKUP('System Exta Life firmy ZAMEL'!O37,'dane wejściowe'!$A$1:$C$32,2,FALSE) -> 190 | R37: 0 | S37: 190 | T37: 0 | U37: euro | V37: =VLOOKUP('System Exta Life firmy ZAMEL'!U37,Table_0[],3,FALSE) -> 4.4906 | W37: 42.31060437 | X37: 42.31060437 | Y37: 0
N38: Gniazda zdalnie sterowane | O38: =J74 -> ROG-21 | P38: =K76 -> 0 | Q38: =VLOOKUP('System Exta Life firmy ZAMEL'!O38,'dane wejściowe'!$A$1:$C$32,2,FALSE) -> 240 | R38: 0 | S38: 240 | T38: 0 | U38: euro | V38: =VLOOKUP('System Exta Life firmy ZAMEL'!U38,Table_0[],3,FALSE) -> 4.4906 | W38: 53.44497395 | X38: 53.44497395 | Y38: 0
N39: Odbiorniki modułowe | O39: =A89 -> SRM-22 | P39: =B91 -> 0 | Q39: =VLOOKUP('System Exta Life firmy ZAMEL'!O39,'dane wejściowe'!$A$1:$C$32,2,FALSE) -> 275 | R39: 0 | S39: 275 | T39: 0 | U39: euro | V39: =VLOOKUP('System Exta Life firmy ZAMEL'!U39,Table_0[],3,FALSE) -> 4.4906 | W39: 61.23903265 | X39: 61.23903265 | Y39: 0
O40: =D89 -> ROM-22 | P40: =E91 -> 0 | Q40: =VLOOKUP('System Exta Life firmy ZAMEL'!O40,'dane wejściowe'!$A$1:$C$32,2,FALSE) -> 265 | R40: 0 | S40: 265 | T40: 0 | U40: euro | V40: =VLOOKUP('System Exta Life firmy ZAMEL'!U40,Table_0[],3,FALSE) -> 4.4906 | W40: 59.01215873 | X40: 59.01215873 | Y40: 0
O41: =G89 -> ROM-24 | P41: =H91 -> 0 | Q41: =VLOOKUP('System Exta Life firmy ZAMEL'!O41,'dane wejściowe'!$A$1:$C$32,2,FALSE) -> 293 | R41: 0 | S41: 293 | T41: 0 | U41: euro | V41: =VLOOKUP('System Exta Life firmy ZAMEL'!U41,Table_0[],3,FALSE) -> 4.4906 | W41: 65.24740569 | X41: 65.24740569 | Y41: 0
N42: Czujniki | O42: =A104 -> RCR-21 | P42: =B106 -> 0 | Q42: =VLOOKUP('System Exta Life firmy ZAMEL'!O42,'dane wejściowe'!$A$1:$C$32,2,FALSE) -> 200 | R42: 0 | S42: 200 | T42: 0 | U42: euro | V42: =VLOOKUP('System Exta Life firmy ZAMEL'!U42,Table_0[],3,FALSE) -> 4.4906 | W42: 44.53747829 | X42: 44.53747829 | Y42: 0
O43: =D104 -> RCK-21 | P43: =E106 -> 0 | Q43: =VLOOKUP('System Exta Life firmy ZAMEL'!O43,'dane wejściowe'!$A$1:$C$32,2,FALSE) -> 180 | R43: 0 | S43: 180 | T43: 0 | U43: euro | V43: =VLOOKUP('System Exta Life firmy ZAMEL'!U43,Table_0[],3,FALSE) -> 4.4906 | W43: 40.08373046 | X43: 40.08373046 | Y43: 0
A44: RNP-21 | D44: RNP-22 | G44: RNM-24 | O44: =G104 -> RCM-21 | P44: =H106 -> 0 | Q44: =VLOOKUP('System Exta Life firmy ZAMEL'!O44,'dane wejściowe'!$A$1:$C$32,2,FALSE) -> 220 | R44: 0 | S44: 220 | T44: 0 | U44: euro | V44: =VLOOKUP('System Exta Life firmy ZAMEL'!U44,Table_0[],3,FALSE) -> 4.4906 | W44: 48.99122612 | X44: 48.99122612 | Y44: 0
A45: Nadajnik 4-kanałowy 230VAC | D45: Nadajnik 4-kanałowy bateryjny | G45: Nadajnik modułowy 4-kanałowy | O45: =J104 -> RCZ-21 | P45: =K106 -> 0 | Q45: =VLOOKUP('System Exta Life firmy ZAMEL'!O45,'dane wejściowe'!$A$1:$C$32,2,FALSE) -> 220 | R45: 0 | S45: 220 | T45: 0 | U45: euro | V45: =VLOOKUP('System Exta Life firmy ZAMEL'!U45,Table_0[],3,FALSE) -> 4.4906 | W45: 48.99122612 | X45: 48.99122612 | Y45: 0
B46: 0 | E46: 0 | H46: 0 | O46: =A119 -> RCT-21 | P46: =B121 -> 0 | Q46: =VLOOKUP('System Exta Life firmy ZAMEL'!O46,'dane wejściowe'!$A$1:$C$32,2,FALSE) -> 116.5 | R46: 0 | S46: 116.5 | T46: 0 | U46: euro | V46: =VLOOKUP('System Exta Life firmy ZAMEL'!U46,Table_0[],3,FALSE) -> 4.4906 | W46: 25.9430811 | X46: 25.9430811 | Y46: 0
O47: =D119 -> RCT-22 | P47: =E121 -> 0 | Q47: =VLOOKUP('System Exta Life firmy ZAMEL'!O47,'dane wejściowe'!$A$1:$C$32,2,FALSE) -> 105.5 | R47: 0 | S47: 105.5 | T47: 0 | U47: euro | V47: =VLOOKUP('System Exta Life firmy ZAMEL'!U47,Table_0[],3,FALSE) -> 4.4906 | W47: 23.4935198 | X47: 23.4935198 | Y47: 0
N48: Regulatory temperatury | O48: =A134 -> RGT-01 | P48: =B136 -> 0 | Q48: =VLOOKUP('System Exta Life firmy ZAMEL'!O48,'dane wejściowe'!$A$1:$C$32,2,FALSE) -> 245 | R48: 0 | S48: 245 | T48: 0 | U48: euro | V48: =VLOOKUP('System Exta Life firmy ZAMEL'!U48,Table_0[],3,FALSE) -> 4.4906 | W48: 54.5584109 | X48: 54.5584109 | Y48: 0
N49: Akcesoria | O49: =G119 -> PCL-21 | P49: =H121 -> 0 | Q49: =VLOOKUP('System Exta Life firmy ZAMEL'!O49,'dane wejściowe'!$A$1:$C$32,2,FALSE) -> 45 | R49: 0 | S49: 45 | T49: 0 | U49: euro | V49: =VLOOKUP('System Exta Life firmy ZAMEL'!U49,Table_0[],3,FALSE) -> 4.4906 | W49: 10.02093261 | X49: 10.02093261 | Y49: 0
O50: =J119 -> PCZ-21 | P50: =K121 -> 0 | Q50: =VLOOKUP('System Exta Life firmy ZAMEL'!O50,'dane wejściowe'!$A$1:$C$32,2,FALSE) -> 55 | R50: 0 | S50: 55 | T50: 0 | U50: euro | V50: =VLOOKUP('System Exta Life firmy ZAMEL'!U50,Table_0[],3,FALSE) -> 4.4906 | W50: 12.24780653 | X50: 12.24780653 | Y50: 0
O51: =D134 -> REP-21 | P51: =E136 -> 0 | Q51: =VLOOKUP('System Exta Life firmy ZAMEL'!O51,'dane wejściowe'!$A$1:$C$32,2,FALSE) -> 169 | R51: 0 | S51: 169 | T51: 0 | U51: euro | V51: =VLOOKUP('System Exta Life firmy ZAMEL'!U51,Table_0[],3,FALSE) -> 4.4906 | W51: 37.63416915 | X51: 37.63416915 | Y51: 0
P52: Podsumowanie zestawu SUMA: | S52: netto | T52: =SUM(T21:T51) -> 0 | U52: Podsumowanie zestawu SUMA EXPORT: | Y52: =SUM(Y21:Y51) -> 0
S53: brutto 8% VAT | T53: =T52+T52*8% -> 0
S54: brutto 23% VAT | T54: =T52+T52*23% -> 0
N56: Informacje zawarte w arkuszu nie są prawnie wiążące i nie stanowią oferty handlowej, w tym w rozumieniu art. 66 § 1 Kodeksu cywilnego ani zapewnienia, w szczególności w rozumieniu art. 556 Kodeksu cywilnego
A59: ROP-21 | D59: ROP-22 | G59: SLR-21 | J59: SLR-22
A60: Odbiornik 1-kanałowy | D60: Odbornik 2-kanałowy | G60: Sterownik LED 4-kanałowy | J60: Sterownik LED RGBW
B61: 0 | E61: 0 | H61: 0 | K61: 0
A74: SRP-22 | D74: ROB-21 | G74: RDP-21 | J74: ROG-21
A75: Sterownik rolet | D75: Odbornik bramowy 2 kanałowy | G75: Ściemniacz oświetlenia | J75: Gniazdo zdalnie sterowane z pomiarem
B76: 0 | E76: 0 | H76: 0 | K76: 0
J79: Dokumentacja
A89: SRM-22 | D89: ROM-22 | G89: ROM-24
A90: Sterownik rolet podwójny | D90: Odbiornik 2-kanałowy | G90: Odbiornik 4-kanałowy
B91: 0 | E91: 0 | H91: 0
A104: RCR-21 | D104: RCK-21 | G104: RCM-21 | J104: RCZ-21
A105: Czujnik ruchu | D105: Kontaktron | G105: Multisensor | J105: Czujnik zalania
B106: 0 | E106: 0 | H106: 0 | K106: 0
A119: RCT-21 | D119: RCT-22 | G119: PCL-21 | J119: PCZ-21
A120: Czujnik temperatury 4-kanałowy | D120: Czujnik temperatury | G120: Podstawka zasilająca | J120: Podstawka zasilająca z sondą zalania
B121: 0 | E121: 0 | H121: 0 | K121: 0
G124: KONTAKT: Przemysław Wilde Menedżer Produktu/Product Manager tel. kom.: +48 539 953 704 tel.: +48 32 210 46 65 wew. 235 e-mail: przemyslaw.wilde@zamel.pl www.zamel.com
A134: RGT-01 | D134: REP-21
A135: Głowica termostatyczna | D135: Retransmiter
B136: 0 | E136: 0

Sheet dane wejściowe (hidden)
A1: Symbol | B1: 2020 | C1: 2021 | F1: Tak | G1: dopuszkowe
A2: EFC-01 | B2: 721 | C2: 721 | F2: Nie
A3: RCM-21 | B3: 220 | C3: 225
A4: P-457/2 | B4: 111 | C4: 114
A5: P-456/36 | B5: 255 | C5: 261
A6: P-457/4 | B6: 116.5 | C6: 120
A7: P-456/8 | B7: 182.5 | C7: 187
A8: PCL-21 | B8: 45 | C8: 47
A9: PCZ-21 | B9: 55 | C9: 58
A10: RGT-01 | B10: 245 | C10: 245
A11: RCK-21 | B11: 180 | C11: 199
A12: RCR-21 | B12: 200 | C12: 220
A13: RCT-22 | B13: 105.5 | C13: 109
A14: RCT-21 | B14: 116.5 | C14: 120
A15: RCZ-21 | B15: 220 | C15: 225
A16: RNP-21 | B16: 130 | C16: 134.5
A17: RNP-22 | B17: 111 | C17: 114.5
A18: RNK-22 | B18: 111 | C18: 114.5
A19: RNK-24 | B19: 121.5 | C19: 125
A20: RNM-24 | B20: 230.5 | C20: 238
A21: ROP-21 | B21: 172.5 | C21: 177
A22: ROP-22 | B22: 174 | C22: 179
A23: ROM-22 | B23: 265 | C23: 273
A24: ROM-24 | B24: 293 | C24: 299.5
A25: SRP-22 | B25: 174 | C25: 179
A26: SRM-22 | B26: 275 | C26: 284
A27: RDP-21 | B27: 190 | C27: 195
A28: REP-21 | B28: 169 | C28: 175
A29: SLR-21 | B29: 179.5 | C29: 185
A30: SLR-22 | B30: 200 | C30: 206
A31: ROB-21 | B31: 220 | C31: 220
A32: ROG-21 | B32: 240 | C32: 240

Sheet Arkusz1 (hidden)

Sheet kursy walut (hidden)
A1: Nazwa waluty | B1: Kod waluty | C1: Kurs średni
A2: bat (Tajlandia) | B2: 1 THB | C2: 0.1243
A3: dolar amerykański | B3: 1 USD | C3: 3.7352
A4: dolar australijski | B4: 1 AUD | C4: 2.8448
A5: dolar Hongkongu | B5: 1 HKD | C5: 0.4819
A6: dolar kanadyjski | B6: 1 CAD | C6: 2.9193
A7: dolar nowozelandzki | B7: 1 NZD | C7: 2.6873
A8: dolar singapurski | B8: 1 SGD | C8: 2.801
A9: euro | B9: 1 EUR | C9: 4.4906
A10: forint (Węgry) | B10: 100 HUF | C10: 1.2616
A11: frank szwajcarski | B11: 1 CHF | C11: 4.1555
A12: funt szterling | B12: 1 GBP | C12: 5.0937
A13: hrywna (Ukraina) | B13: 1 UAH | C13: 0.1335
A14: jen (Japonia) | B14: 100 JPY | C14: 3.5547
A15: korona czeska | B15: 1 CZK | C15: 0.1731
A16: korona duńska | B16: 1 DKK | C16: 0.6037
A17: korona islandzka | B17: 100 ISK | C17: 2.8767
A18: korona norweska | B18: 1 NOK | C18: 0.4331
A19: korona szwedzka | B19: 1 SEK | C19: 0.4432
A20: kuna (Chorwacja) | B20: 1 HRK | C20: 0.5929
A21: lej rumuński | B21: 1 RON | C21: 0.922
A22: lew (Bułgaria) | B22: 1 BGN | C22: 2.296
A23: lira turecka | B23: 1 TRY | C23: 0.5214
A24: nowy izraelski szekel | B24: 1 ILS | C24: 1.1314
A25: peso chilijskie | B25: 100 CLP | C25: 0.5098
A26: peso filipińskie | B26: 1 PHP | C26: 0.0778
A27: peso meksykańskie | B27: 1 MXN | C27: 0.1855
A28: rand (Republika Południowej Afryki) | B28: 1 ZAR | C28: 0.2494
A29: real (Brazylia) | B29: 1 BRL | C29: 0.6958
A30: ringgit (Malezja) | B30: 1 MYR | C30: 0.922
A31: rubel rosyjski | B31: 1 RUB | C31: 0.0491
A32: rupia indonezyjska | B32: 10000 IDR | C32: 2.667
A33: rupia indyjska | B33: 100 INR | C33: 5.1184
A34: won południowokoreański | B34: 100 KRW | C34: 0.3348
A35: yuan renminbi (Chiny) | B35: 1 CNY | C35: 0.5783
A36: SDR (MFW) | B36: 1 XDR | C36: 5.3537
